[Event "45th FIDE Womens Olympiad 2024"]
[Site "Budapest"]
[Date "2024.09.15"]
[Round "5.87"]
[White "Voicu-Jagodzinsky, Carmen"]
[Black "Gombocz, Zsofia"]
[Result "1-0"]
[ECO "D02"]
[WhiteElo "2271"]
[BlackElo "2061"]
[Annotator "TA"]
[PlyCount "65"]
[EventDate "2024.09.05"]
[EventType "team-tourn"]
[EventCountry "HUN"]
[SourceTitle "playchess.com"]
[Source "ChessBase"]
[SourceQuality "1"]
[WhiteTeam "Romania"]
[BlackTeam "Hungary C"]
[WhiteTeamCountry "ROU"]
[TimeControl "40/5400+30:1800+30"]

{[%evp 12,65,11,1,35,24,35,33,74,77,101,91,76,91,131,64,68,61,56,29,126,129,125,129,163,145,170,168,206,208,203,200,227,233,246,243,247,252,256,242,239,201,213,175,198,187,200,193,176,93,111,46,928,877,975,742]} 1. d4 d5 2. Nf3 Nf6 3. Bf4 c5 4. e3 e6 5. Nbd2 Nc6 6. c3 Bd6 7. Bg3 a6 8. Bd3 {[%cal Bf1d3,Bd3c2,Bc2e4][%mdl 32]} c4 9. Bc2 Qc7 {White is slightly better.} 10. e4 dxe4 11. Nxe4 Nxe4 12. Bxe4 h6 13. O-O ({White should play} 13. Qe2 $1 $16) 13... O-O $1 $14 {[%cal Bh8f8,Bf8d8,Bd8d5][%mdl 32]} 14. Bxd6 Qxd6 15. Re1 f5 (15... b5 $11) 16. Bxc6 $16 Qxc6 17. Re5 Rd8 18. Qe2 Rd5 19. Re1 Bd7 20. Re3 Qc7 21. Ne5 Bb5 22. Ng6 e5 23. Nxe5 Rd6 {Prevents Ng6.} 24. f4 Rf6 25. h4 {[%cal Bh2h4,Bh4h5][%mdl 32]} Rc8 26. h5 {Hoping for Ng6.} Be8 27. Ng4 Rf8 28. Re7 $1 Qxf4 {[#]} 29. Qe6+ $1 (29. Ne5 Qg3) 29... Kh8 (29... Bf7 $2 30. Rxf7 Rxf7 31. Qxc8+ $18) 30. Nf6 $40 {[%mdl 128] White has strong attack.} (30. Qxc8 fxg4 31. Qxe8 (31. Rxe8 Qf2+ 32. Kh2 Qh4+ 33. Kg1 Qf2+ 34. Kh2 Qh4+ 35. Kg1 Qf2+ $11) 31... Qf2+ 32. Kh2 Qh4+ 33. Kg1 Qf2+ 34. Kh2 Qh4+ 35. Kg1 Qf2+ $11) ({White should try} 30. Ne3 $18 Rc6 31. Nd5) 30... Bc6 {[#]} 31. d5 {Dancing on a razor blade. White is much more active.} (31. Nd7 $1 $16 Bxd7 32. Rxd7) 31... Bb5 $2 {[%mdl 8192]} (31... Qg5 $14) 32. Rf1 $18 ({Less strong is} 32. Rxb7 Rc7 (32... gxf6 33. Qe7) 33. Rxb5 (33. Rxc7 Qxc7 34. d6 Qc5+ 35. Kf1 Rxf6 $17) 33... axb5 $16) 32... Qg3 33. Qxf5 {Weighted Error Value: White=0.20 (precise) /Black=0.20 (precise) .  Loses game:     	---       	Black=1      Mistake:       	White=3     	Black=1      Inaccurate:     	White=1     	Black=2      OK:         	White=7     	Black=5      Best:        	White=2     	Black=2      Strong:       	White=2     	Black=1} 1-0

[Event "45th FIDE Womens Olympiad 2024"]
[Site "Budapest"]
[Date "2024.09.15"]
[Round "5.88"]
[White "Nandin-Erdene, Davaademberel"]
[Black "Lehaci, Miruna-Daria"]
[Result "0-1"]
[ECO "B56"]
[WhiteElo "2039"]
[BlackElo "2180"]
[Annotator "TA"]
[PlyCount "124"]
[EventDate "2024.09.05"]
[EventType "team-tourn"]
[EventCountry "HUN"]
[SourceTitle "playchess.com"]
[Source "ChessBase"]
[SourceQuality "1"]
[WhiteTeam "Hungary C"]
[BlackTeam "Romania"]
[WhiteTeamCountry "HUN"]
[BlackTeamCountry "ROU"]
[TimeControl "40/5400+30:1800+30"]

{[%evp 18,124,29,5,8,0,43,28,18,0,0,0,23,0,13,7,15,-48,-43,-72,-76,-80,-62,-67,-60,-157,-145,-140,-104,-104,-111,-113,-84,-118,-25,-327,-67,-106,-109,-95,-15,-91,-91,-107,-97,-174,-90,-73,-62,-200,-217,-218,-204,-204,-204,-233,-263,-252,-260,-269,-266,-272,-267,-261,-250,-239,-241,-217,-238,-443,-418,-443,-437,-445,-435,-421,-420,-761,-652,-835,-1193,-2494,-1956,-2585,-2025,-4710,-3712,-3323,-2345,-10920,-9306,-11178,-7945,-6713,-5691,-29967,-10482,-29979,-29979,-29979,-29980,-29980,-29981,-29981,-29982,-29989,-29988,-29988,-29989]} 1. e4 c5 2. Nf3 Nc6 3. d4 cxd4 4. Nxd4 Nf6 5. Nc3 d6 6. f3 e5 7. Nb3 Be7 8. Be3 O-O 9. Qd2 Be6 10. Nd5 a5 11. Bb6 Qd7 12. Bb5 $1 (12. Nxa5 Bxd5 13. exd5 Nd4 14. Bxd4 exd4 $15) 12... Bd8 {White has an edge.} 13. Bxd8 Qxd8 14. Nxf6+ Qxf6 15. Bxc6 bxc6 16. Nxa5 c5 17. O-O ({Better is} 17. Qc3 $11) 17... Qd8 $1 $15 18. b4 Qb6 {Wards off Nc6} 19. Kh1 cxb4 (19... Qxb4 20. Qxb4 cxb4 21. Nc6 $11) 20. Nb3 Rfc8 21. f4 (21. Nc1 $15) 21... exf4 22. Nd4 Qc5 23. Nxe6 fxe6 24. Qxf4 Rf8 {Against Qf7+. Active counter play!} (24... Qxc2 $2 25. Rac1 h6 (25... Qxa2 26. Rxc8+ Rxc8 27. Qf7+ Kh8 28. Qf8+ Rxf8 29. Rxf8#) 26. Rxc2 $18 (26. Qxd6 $2 Qxc1 27. Qxe6+ Kh8 $19)) 25. Qg4 Qc4 (25... Qxc2 26. Qxe6+ Kh8 27. Rxf8+ (27. Qxd6 Rxf1+ 28. Rxf1 h6 $11) 27... Rxf8 28. Qxd6 $14) (25... Qe5 $17 26. Qe2 h6) 26. Kg1 {[%mdl 8192]} (26. Rxf8+ $11 Rxf8 27. h3) 26... e5 $2 (26... Rxf1+ $19 27. Rxf1 Rxa2 (27... Qxa2 28. e5 $15)) 27. Qd7 Qd4+ (27... Rxa2 $2 28. Rxf8+ (28. Qxd6 Raa8 $11) 28... Kxf8 29. Rf1+ $18 (29. Qxd6+ Ke8 $18) (29. Qxd6+ Kg8 $18)) (27... Qxc2 $6 28. Qe6+ Kh8 29. Qxd6 Rxf1+ 30. Rxf1 $11) 28. Kh1 {White is weak on the dark squares} Rf6 {Prevents Qe6+} ({Black should try} 28... h6 $1 $17 {aiming for ...Kh7.} 29. Rfd1 Qc4 (29... Qxe4 30. Qxd6 Rf2 31. Rg1 $15)) 29. Qb5 (29. Rac1 $11 {keeps the balance.}) 29... Raf8 (29... Qxe4 30. Rxf6 gxf6 31. Rf1 $11) 30. Rfe1 Rf2 {[%cal Oh7h6]} 31. Rad1 (31. a4 $17 {keeps fighting.}) 31... Qc3 $40 {[%mdl 128] Black wants a kill.} (31... Qc5 $19 32. Qd3 h6 (32... Rxc2 $2 33. Qb3+ Kh8 34. Rf1 $17) (32... Qxc2 33. Qd5+ Kh8 34. Qxd6 $17)) 32. Qd5+ Kh8 {[%cal Oc3e1] ( -> ...Qxe1+!)} 33. Qd3 {Black converts the advantage convincingly.} (33. Rg1 $15) 33... Qxd3 $19 ({Not} 33... Rxc2 34. Qxd6 Rcf2 35. Rg1 $15) ({But not} 33... Qxc2 34. Qxc2 Rxc2 35. Rxd6 $17) 34. cxd3 Rxa2 {[%mdl 4096] Endgame. KRR-KRR} 35. Rb1 Rb8 36. Rb3 {[#]} Ra3 $1 37. Reb1 {Rxa3 would now be deadly.} Rxb3 38. Rxb3 {[#] KR-KR} Kg8 $1 39. Kg1 Kf7 40. Kf2 Ke6 41. Ke3 Kd7 42. d4 Kc6 {Threatens to win with ...Kb5.} 43. Kd3 $2 (43. dxe5 dxe5 44. Kd2) 43... Kb5 44. dxe5 dxe5 45. Kc2 Kc4 46. Rg3 Rb7 47. Rf3 (47. Rg5 $142 Re7 48. Kb2) 47... Kd4 48. Kb3 Kxe4 49. Rh3 g6 50. Rf3 Kd4 {And now ...e4 would win.} 51. Rf8 e4 {White must now prevent ...Kd3.} 52. Rd8+ Ke3 53. g4 Kf2 54. Rf8+ Ke2 55. h4 e3 56. h5 gxh5 57. gxh5 Kd2 {Black mates.} 58. Rd8+ Ke1 59. Re8 e2 60. Re6 Rf7 61. Kc2 Kf2 62. Kd2 Rd7+ {Weighted Error Value: White=0.73/Black=0.25 (precise) .  Loses game:     	White=1     	---        Missed win:     	---       	Black=1      Mistake:       	White=7     	Black=3      Inaccurate:     	White=3     	Black=1      OK:         	White=11    	Black=10     Best:        	White=3     	Black=4      Strong:       	White=1     	Black=3} 0-1

[Event "45th FIDE Womens Olympiad 2024"]
[Site "Budapest"]
[Date "2024.09.15"]
[Round "5.89"]
[White "Tsolakidou, Stavroula"]
[Black "Corrales Jimenez, Zenia"]
[Result "1/2-1/2"]
[ECO "E60"]
[WhiteElo "2444"]
[BlackElo "2170"]
[Annotator "TA"]
[PlyCount "129"]
[EventDate "2024.09.05"]
[EventType "team-tourn"]
[EventCountry "HUN"]
[SourceTitle "playchess.com"]
[Source "ChessBase"]
[SourceQuality "1"]
[WhiteTeam "Greece"]
[BlackTeam "Mexico"]
[WhiteTeamCountry "GRE"]
[BlackTeamCountry "MEX"]
[TimeControl "40/5400+30:1800+30"]

{[%evp 9,129,13,16,17,21,14,24,17,27,28,53,46,39,47,52,56,73,70,76,65,65,72,104,58,58,60,93,86,88,92,88,77,87,81,108,106,137,86,85,92,85,89,88,89,89,90,83,90,90,90,90,90,94,90,79,79,79,64,64,64,64,64,64,64,64,0,64,64,64,64,64,64,64,64,64,64,64,52,52,52,52,52,52,52,52,52,52,52,52,52,52,52,52,52,52,0,52,52,52,0,0,0,0,0,0,0,0,0,0,0,0,0,0,0,0,0,0,0,0,0,0,0]} 1. d4 Nf6 2. c4 g6 3. h4 c6 4. Nc3 d5 5. cxd5 cxd5 6. Bf4 Nc6 {[%cal Bb8c6,Bc6a5,Ba5c4][%mdl 32]} 7. e3 Bg7 8. Be2 {White has an edge.} h5 9. Nf3 Bg4 10. Qb3 Na5 11. Qa4+ Bd7 12. Bb5 Nc4 13. Ne5 {aiming for Nxd7.} Nb6 14. Qb3 {[%cal Oc3d5] White is much more active.} O-O 15. Nxd7 Nbxd7 16. Nxd5 (16. O-O $1 $16) 16... Nxd5 $14 17. Qxd5 Qa5+ 18. Ke2 $1 e5 19. dxe5 Nxe5 20. Rhd1 (20. Bxe5 {looks sharper.} Rad8 21. Bd6 a6 22. b4) 20... Rad8 {[#]} 21. Qb3 (21. Qxb7 $2 Rb8 22. Qa6 Rxb5 (22... Qxb5+ $2 23. Qxb5 Rxb5 24. b3 $19) 23. Qxa5 Rxa5 $19) 21... Rxd1 22. Rxd1 Rd8 {[#]} 23. Qa4 (23. Rd5 $142 $1 Rxd5 24. Qxd5) 23... Qb6 24. Rxd8+ Qxd8 25. Qxa7 Qd5 26. a4 {Black must now prevent Qb8+.} Nc4 27. Bxc4 Qxc4+ $16 {[%mdl 4096] Endgame. KQB-KQB} 28. Kf3 Qc6+ 29. Kg3 Bxb2 30. Qb8+ Kh7 31. Qc7 Qd5 32. f3 Kg7 33. e4 Qd1 34. Be5+ $1 (34. Qxb7 Qe1+ 35. Kh3 Qh1+ 36. Kg3 (36. Bh2 Be5 $15) 36... Bf6 $17 (36... Bc3 37. Bd2 $11)) 34... Bxe5+ 35. Qxe5+ $14 {KQ-KQ} Kg8 36. Qe8+ Kg7 37. Qe5+ Kg8 $1 38. Kh2 Qxa4 39. Qb8+ Kg7 40. Qxb7 Qd4 41. Qe7 {Repels Qd6+} Kg8 42. Qg5 Qd6+ 43. e5 Qd4 44. Kg3 Qc4 45. Qd8+ Kg7 46. Qf6+ Kg8 47. Qf4 Qd5 48. Qe3 Qc4 49. Qd2 Kg7 50. Qd6 Kg8 51. Qf6 Qd4 52. Qf4 Qd5 53. Kh2 Kg7 54. g4 (54. Qf6+ $14 Kg8 55. Kg3) 54... hxg4 $11 {The position is equal.} 55. fxg4 Qa2+ 56. Kg3 Qe2 57. h5 Qe1+ 58. Kg2 Qe2+ 59. Kh3 gxh5 60. Qg5+ Kf8 61. gxh5 Qf3+ 62. Kh4 Qh1+ 63. Kg4 Qg2+ 64. Kf4 Qf2+ 65. Ke4 {Weighted Error Value: White=0.06 (flawless) /Black=0.03 (flawless) .  Mistake:       	White=3     	---        Inaccurate:     	---       	Black=3      OK:         	White=16    	Black=26     Best:        	White=4     	Black=3      Strong:       	White=2     	Black=1} 1/2-1/2

[Event "45th FIDE Womens Olympiad 2024"]
[Site "Budapest"]
[Date "2024.09.15"]
[Round "5.90"]
[White "Miranda Rodriguez, Tania"]
[Black "Avramidou, Anastasia"]
[Result "0-1"]
[ECO "B94"]
[WhiteElo "2090"]
[BlackElo "2290"]
[Annotator "TA"]
[PlyCount "94"]
[EventDate "2024.09.05"]
[EventType "team-tourn"]
[EventCountry "HUN"]
[SourceTitle "playchess.com"]
[Source "ChessBase"]
[SourceQuality "1"]
[WhiteTeam "Mexico"]
[BlackTeam "Greece"]
[WhiteTeamCountry "MEX"]
[BlackTeamCountry "GRE"]
[TimeControl "40/5400+30:1800+30"]

{[%evp 12,94,22,18,10,16,21,0,14,-25,-14,-14,0,-78,-108,-89,-71,-37,-43,-64,-36,-54,-10,-205,-156,-178,-162,-316,-330,-333,-329,-597,-611,-603,-595,-615,-588,-582,-422,-417,-402,-425,-393,-429,-412,-425,-412,-431,-425,-432,-435,-522,-508,-523,-519,-510,-514,-522,-500,-566,-570,-595,-588,-652,-638,-708,-688,-702,-699,-703,-700,-723,-673,-690,-685,-833,-765,-970,-965,-952,-950,-913,-889,-935,-918]} 1. e4 c5 2. Nf3 d6 3. d4 cxd4 4. Nxd4 Nf6 5. Nc3 a6 6. Bg5 Nbd7 7. Bc4 Qb6 8. Bb3 e6 9. O-O Be7 {The position is equal.} 10. Bxe6 fxe6 11. Nxe6 {And now Nd5 would win.} Kf7 12. Nd5 (12. Be3 $1 $11 Qc6 (12... Qxb2 13. Ng5+ Ke8 14. Bd4 $11) 13. Nd4) 12... Nxd5 $17 13. exd5 Nf6 {Against Qh5+} 14. Re1 {[%cal Oe6g7]} Bxe6 15. Rxe6 Rhf8 {[%cal Oe7d8]} (15... Qxb2 $2 16. Rb1 Qxa2 17. Rxe7+ (17. Rxb7 Rhe8 $18) 17... Kxe7 18. Rxb7+ Kd8 (18... Kf8 19. Bxf6 Re8 20. Bxg7+ Kg8 21. Bc3) 19. Rxg7 $18) 16. Qe2 Bd8 (16... Qxb2 $2 17. Rxe7+ Kg8 18. Re1 $18) 17. Re1 $2 {This costs White the game.} (17. Bxf6 $2 Bxf6 18. c3 Kg8 $19) (17. c4 $1 $11) 17... Kg8 (17... Nxd5 $2 18. Re8 Bf6 19. Qh5+ Kg8 20. Rxa8 $18) 18. c4 Ng4 19. Bf4 {[#]} (19. Qxg4 $2 Qxf2+ 20. Kh1 Qf1+ 21. Rxf1 Rxf1#) (19. Re8 {was called for.} Bxg5 20. Rxa8 Rxa8 21. Qe6+ Kf8 22. Qxg4) 19... Bh4 $1 $19 20. g3 (20. Qxg4 Qxf2+) 20... Rxf4 21. Re8+ $2 (21. gxf4 Qxf2+ 22. Qxf2 Bxf2+ 23. Kf1 Bxe1 (23... Nxh2+ $2 {loses.} 24. Kxf2 Ng4+ 25. Kf3 $18) 24. Kxe1) 21... Rxe8 22. Qxe8+ Rf8 23. Qe6+ Kh8 24. Qf5 {[%cal Rf5f8]} Qxf2+ ({Stronger than} 24... Rxf5 25. Re8+) 25. Qxf2 Nxf2 26. gxh4 {[%mdl 4096] Endgame. KRN-KR} Nd3 {[%csl LRb2,LRe1]} 27. Re2 Kg8 28. b3 Kf7 {Against Re7+} 29. Re6 Rd8 {Black is clearly winning.} 30. Re3 Ne5 31. c5 Kf6 32. Rc3 dxc5 33. Rxc5 Rd7 34. a4 Ke7 35. b4 Kd6 {...Rc7 is the strong threat.} 36. Rc3 Rc7 37. Rb3 Kxd5 38. b5 Rc1+ 39. Kg2 a5 40. b6 Rc2+ 41. Kg3 Nc6 {...Ra2 would now be deadly.} 42. Rf3 Re2 43. Rb3 Re4 44. Rb5+ Ke6 45. Rg5 Kf6 46. Rd5 Rd4 47. Rh5 h6 {Weighted Error Value: White=0.51/Black=0.21 (precise) .  Loses game:     	White=1     	---        Mistake:       	White=3     	---        Inaccurate:     	White=1     	Black=1      OK:         	White=8     	Black=15     Best:        	---       	Black=2      Strong:       	---       	Black=1} 0-1

[Event "45th FIDE Womens Olympiad 2024"]
[Site "Budapest"]
[Date "2024.09.15"]
[Round "5.91"]
[White "Markantonaki, Haritomeni"]
[Black "Mendez Tovar, Yessica Yissel"]
[Result "1-0"]
[ECO "C88"]
[WhiteElo "2179"]
[BlackElo "2004"]
[Annotator "RC"]
[PlyCount "83"]
[EventDate "2024.09.05"]
[EventType "team-tourn"]
[EventCountry "HUN"]
[SourceTitle "playchess.com"]
[Source "ChessBase"]
[SourceQuality "1"]
[WhiteTeam "Greece"]
[BlackTeam "Mexico"]
[WhiteTeamCountry "GRE"]
[BlackTeamCountry "MEX"]
[TimeControl "40/5400+30:1800+30"]

1. e4 e5 2. Nf3 Nc6 3. Bb5 a6 4. Ba4 Nf6 5. O-O Be7 6. Re1 b5 7. Bb3 Bb7 8. d3 d6 9. a3 O-O 10. Nbd2 Qd7 11. Nf1 Nd8 12. Ng3 Ne6 13. c3 c5 14. d4 c4 15. Bc2 Qc7 16. Nf5 Rfe8 17. Nxe7+ Rxe7 18. d5 Nc5 19. Bg5 Ncd7 20. Nh4 Ree8 21. Qf3 h6 22. Bd2 Kh7 23. Nf5 Rg8 24. g4 g5 25. Qh3 Rg6 26. f3 Ng8 27. Kf2 Nc5 28. Rh1 Bc8 29. Rag1 Rb8 30. Qf1 Na4 31. Qc1 Nc5 32. h4 f6 33. hxg5 fxg5 34. Bxg5 Qa7 35. Be3 Bd7 36. g5 Rf8 37. gxh6 Bxf5 38. exf5 Rxh6 39. f6+ e4 40. Rg7+ Qxg7 41. fxg7 Rxf3+ 42. Kg2 1-0

[Event "45th FIDE Womens Olympiad 2024"]
[Site "Budapest"]
[Date "2024.09.15"]
[Round "5.92"]
[White "Padilla Garcia, Cecilia Xasive"]
[Black "Makropoulou, Marina"]
[Result "1/2-1/2"]
[ECO "B12"]
[WhiteElo "1954"]
[BlackElo "2103"]
[Annotator "NA RC"]
[PlyCount "93"]
[EventDate "2024.09.05"]
[EventType "team-tourn"]
[EventCountry "HUN"]
[SourceTitle "playchess.com"]
[Source "ChessBase"]
[SourceQuality "1"]
[WhiteTeam "Mexico"]
[BlackTeam "Greece"]
[WhiteTeamCountry "MEX"]
[BlackTeamCountry "GRE"]
[TimeControl "40/5400+30:1800+30"]

1. e4 c6 2. d4 d5 3. f3 e6 4. Nc3 Bb4 5. Bd3 dxe4 6. Bxe4 f5 7. Bd3 Qxd4 8. Nge2 Qh4+ 9. g3 Qe7 10. a3 Bc5 11. Na4 Nd7 12. Nxc5 Nxc5 13. Bc4 e5 14. Be3 Nf6 15. Qd2 b5 16. b4 Nb7 17. Bb3 Be6 18. Qc3 Bd5 19. O-O Qe6 20. f4 Bxb3 21. fxe5 Bc4 22. exf6 Bxe2 23. fxg7 Rg8 24. Rfe1 Bf3 25. Bxa7 Be4 26. Bb6 Kf7 27. Bd4 Rad8 28. a4 Nd6 29. a5 Ne8 30. a6 Nxg7 31. a7 Nh5 32. Ra6 Qc4 33. Qxc4+ bxc4 34. c3 Ng7 35. Rea1 Ra8 36. Rb6 Ne6 37. Be5 Ng5 38. Rb7+ Ke6 39. Bb8 Bd5 40. Re1+ Be4 41. Rd1 Bd3 42. Re1+ Ne4 43. Rb6 Kd7 44. Rb7+ Ke6 45. Rb6 Kd7 46. Rb7+ Ke6 47. Rb6 1/2-1/2

[Event "45th FIDE Womens Olympiad 2024"]
[Site "Budapest"]
[Date "2024.09.15"]
[Round "5.93"]
[White "Efroimski, Marsel"]
[Black "Arakhamia-Grant, Ketevan"]
[Result "1/2-1/2"]
[ECO "B51"]
[WhiteElo "2408"]
[BlackElo "2263"]
[Annotator "TA"]
[PlyCount "103"]
[EventDate "2024.09.05"]
[EventType "team-tourn"]
[EventCountry "HUN"]
[SourceTitle "playchess.com"]
[Source "ChessBase"]
[SourceQuality "1"]
[WhiteTeam "Israel"]
[BlackTeam "Scotland"]
[WhiteTeamCountry "ISR"]
[BlackTeamCountry "SCO"]
[TimeControl "40/5400+30:1800+30"]

{[%evp 13,103,21,31,22,50,37,47,45,45,45,42,36,28,0,33,31,40,70,56,69,55,0,0,-14,0,-9,0,0,0,-13,0,0,0,0,0,-6,0,-7,8,9,5,4,11,11,12,0,0,0,0,-5,0,0,0,-2,-7,-60,8,13,21,21,21,22,33,35,35,35,35,30,30,30,43,2,2,2,2,0,0,0,0,0,2,0,0,0,29,29,29,29,36,29,29,29]} 1. e4 c5 2. Nf3 Nc6 3. Bb5 d6 4. O-O Bd7 5. Re1 Nf6 6. c3 {[%cal Bc2c3,Bc3d4,Bd4d5][%mdl 32]} a6 7. Bf1 e5 8. d4 cxd4 9. cxd4 Bg4 10. d5 {White is slightly better.} Nd4 11. Be3 Nxf3+ 12. gxf3 Bd7 13. a4 Be7 14. Nd2 b5 15. axb5 axb5 16. Qb3 O-O 17. Qb4 (17. Bxb5 Rb8 18. Ra4 Rxb5 $19) (17. Rec1 $14) 17... Nh5 $11 18. Nb3 (18. Bxb5 $2 {perishes.} Rb8 19. Ra5 Bg5 $19) 18... f5 19. exf5 Bxf5 20. Rxa8 Qxa8 21. Qxb5 Rb8 22. Ra1 Qb7 23. Qxb7 Rxb7 24. Bc4 Rb4 $1 25. Rc1 Bf6 26. Bd2 Rb8 27. Bc3 Nf4 {[%cal Ob8b3] [#] Strongly threatening ...Rxb3!} 28. Na5 Nd3 29. Bxd3 Bxd3 30. Nc6 Rb5 31. Ra1 Be2 (31... Rxd5 $2 {loses.} 32. Nb4 Bc4 33. Nxd5 Bxd5 34. f4 $18) 32. Ra8+ Kf7 33. Ra7+ Kg6 34. f4 Rxd5 (34... exf4 $15 35. Bxf6 Kxf6) 35. fxe5 dxe5 36. Ne7+ Bxe7 37. Rxe7 Kf6 {[#]} 38. Rxe5 Rxe5 {[%mdl 4096] Endgame.} 39. f4 $1 {[%cal Og1f2]} Kf5 40. fxe5 $14 {KB-KB} Bc4 41. Kf2 Kf4 42. b4 g5 43. Bb2 h5 44. Bc3 g4 45. Bb2 h4 46. Bc3 Ke4 47. Kg1 Kf4 48. Be1 Kxe5 49. Bxh4 Kd6 50. Kf2 Kc6 51. Kg3 Be6 52. Be7 {Weighted Error Value: White=0.07 (flawless) /Black=0.06 (flawless) .  Mistake:       	White=2     	Black=1      Inaccurate:     	White=1     	Black=1      OK:         	White=20    	Black=19     Best:        	---       	Black=3      Strong:       	White=1     	Black=1} 1/2-1/2

[Event "45th FIDE Womens Olympiad 2024"]
[Site "Budapest"]
[Date "2024.09.15"]
[Round "5.94"]
[White "Roy, Ali"]
[Black "Klinova, Masha"]
[Result "0-1"]
[ECO "A07"]
[WhiteElo "1961"]
[BlackElo "2227"]
[Annotator "TA"]
[PlyCount "138"]
[EventDate "2024.09.05"]
[EventType "team-tourn"]
[EventCountry "HUN"]
[SourceTitle "playchess.com"]
[Source "ChessBase"]
[SourceQuality "1"]
[WhiteTeam "Scotland"]
[BlackTeam "Israel"]
[WhiteTeamCountry "SCO"]
[BlackTeamCountry "ISR"]
[TimeControl "40/5400+30:1800+30"]

{[%evp 13,138,-14,-12,-23,-2,-12,23,-22,-11,-16,-7,-25,-12,-27,-8,-35,-36,-55,-35,-36,-33,-35,-31,-30,-25,-35,0,-30,-28,-49,-12,-29,0,0,44,-106,-102,-115,-105,-129,-57,-100,-106,-156,-123,-182,-182,-175,-179,-1008,-993,-1257,-540,-948,-910,-881,-805,-697,-330,-341,-112,-100,-104,-104,-95,-89,-89,-176,-163,-174,-148,-148,-162,-250,-254,-268,-260,-266,-267,-272,-269,-260,-267,-275,-275,-283,-283,-268,-268,-275,-275,-343,-339,-335,-329,-657,-662,-655,-630,-601,-506,-917,-837,-29964,-29962,-29969,-29972,-29969,-29972,-29969,-29970,-29979,-29980,-29981,-29976,-29976,-29977,-29978,-29978,-29978,-29979,-29979,-29980,-29981,-29982,-29982,-29983]} 1. Nf3 d5 2. g3 g6 3. Bg2 Bg7 4. O-O e5 5. d3 Ne7 6. Nbd2 Nbc6 7. e4 O-O 8. a4 {8.Re1 gains popularity. A07: Réti Opening: New York and Capablanca Systems.} a5 9. b3 h6 $146 ({Predecessor:} 9... Re8 10. Bb2 b6 11. exd5 Nxd5 12. Re1 Bb7 13. Nc4 f6 14. Nfd2 Nd4 15. f4 Rb8 16. fxe5 fxe5 {0-1 Tahbaz,A (2442)-Ohanyan,E (2490) AI Cup Play In rapid 2023 (3)}) 10. Ba3 Re8 11. Re1 Be6 12. Rc1 Qd7 13. Bb2 Bg4 14. Nf1 d4 15. N1d2 Nb4 16. Nc4 Nec6 17. Qd2 Kh7 18. h4 Bf8 19. Ra1 {Prevents Na2.} Bg7 20. Rac1 b6 21. Nh2 Bh3 22. f4 {[%cal Of4f5]} Bxg2 23. Qxg2 f5 {[#]} 24. h5 gxh5 $17 25. Qh3 exf4 26. gxf4 Rad8 (26... Qf7 $17 {...fxe4 is the strong threat.} 27. Kh1 Rad8 (27... fxe4 28. dxe4 Rad8 29. f5 $15)) 27. e5 Nd5 28. Qf3 (28. Rf1 $142) 28... Qe6 29. Kf2 (29. Rf1 $17 {was necessary.}) 29... Bf8 $19 30. Rh1 {[%cal Oh2f1]} Be7 {Threatens to win with ...Rg8.} 31. Qxh5 $2 (31. Rcg1) 31... Nxf4 32. Qf3 Ng6 (32... Bh4+ $142 33. Kg1 Nxe5 34. Nxe5 Qxe5) 33. Rcg1 Ncxe5 34. Nxe5 Nxe5 35. Qh5 {Repels Bh4+} Bf8 (35... Bh4+ $142 36. Qxh4 Nxd3+ 37. cxd3 Qe3+ 38. Kg2 Rg8+ 39. Kf1 Qxd3+ 40. Kf2 Qd2+ 41. Kf1 Rde8 (41... Qxb2 42. Qxh6+ Kxh6 43. Nf3+) 42. Qxh6+ Qxh6) 36. Bc1 {[#]} Ng4+ $2 37. Nxg4 $17 Qe2+ 38. Kg3 Qxg4+ (38... fxg4 $2 {too greedy.} 39. Qf7+ (39. Bxh6 $2 {loses.} Qf3+ 40. Kh4 Bxh6 $19) 39... Kh8 40. Bxh6 Qf3+ 41. Qxf3 gxf3 42. Kxf3 $18 (42. Bxf8+ Kg8 $18) (42. Bxf8+ Kg8 $18)) 39. Qxg4 fxg4 40. Rg2 {Repels Re2} (40. Rf1 $17 {is a better defense.}) 40... Bd6+ $19 41. Kxg4 Rg8+ 42. Kh3 Rdf8 {Repels Rf1. ( -> ...Rf3+)} 43. Rxg8 (43. Rg4 {might work better.}) 43... Rxg8 {[%mdl 4096] Endgame. KRB-KRB} 44. Rf1 Rg3+ 45. Kh4 Rg2 46. Bf4 {[#]} Bxf4 $1 (46... Rxc2 47. Bxd6 cxd6 48. Rf4 $17) 47. Rxf4 Rxc2 48. Rxd4 {KR-KR} Kg6 49. b4 axb4 50. Rxb4 Kf5 51. Kg3 Rc3 52. Rd4 {[#]} Ke5 $1 53. Rd7 Ke6 54. Rd4 $2 (54. Rd8 Ra3 55. Rd4) 54... c5 55. Rh4 Rxd3+ 56. Kf2 Rd6 57. Rxh6+ (57. Ke3 $142 Kd7 58. Rg4) 57... Kd5 58. Rh4 Re6 59. Kf3 c4 60. Rh5+ Kd4 61. a5 bxa5 62. Rxa5 c3 63. Ra8 Kd3 64. Rd8+ Kc2 65. Rh8 Kb2 66. Rb8+ Kc1 67. Rc8 c2 68. Rh8 Rb6 69. Ke3 Kb1 0-1